bitfinex/quotes_SOLUSD_20241223
["timestamp","ask_amount","ask_price","bid_price","bid_amount"]
[1734931715950,25.27319818,185.1,185.03,23.776884]
[1734931716156,25.27319818,185.08,185.01,23.776884]
[1734931716880,25.27319818,185.06,184.99,1.5825]
[1734931717982,25.27319818,185.04,184.97,6.2746]
[1734931719073,25.27319818,185.04,184.96,25.27319818]
[1734931719481,25.27319818,185.02,184.94,26.84469818]
[1734931719661,25.27319818,185.0,184.92,31.69809818]
[1734931719981,25.27319818,185.0,184.92,25.27319818]
[1734931721557,25.27319818,185.0,184.89,1.5123]
[1734931721558,25.27319818,184.98,184.9,25.27319818]
[1734931722100,25.27319818,184.98,184.88,6.6407]
[1734931722384,41.11098742,184.93,184.86,41.11098742]
[1734931722799,41.11098742,184.95,184.86,41.11098742]
[1734931722969,41.11098742,184.97,184.88,41.11098742]
[1734931723172,1.663,184.98,184.9,41.11098742]
[1734931723782,1.663,184.98,184.91,23.776884]
[1734931724296,41.11098742,184.97,184.91,23.776884]
[1734931725071,40.61098742,184.97,184.91,23.776884]
[1734931725278,40.61098742,184.97,184.9,41.11098742]
[1734931726488,41.11098742,184.95,184.86,41.11098742]
[1734931726797,41.11098742,184.91,184.84,41.11098742]
[1734931726961,41.11098742,184.89,184.82,41.11098742]
[1734931730470,41.11098742,184.91,184.84,41.11098742]
[1734931730671,41.11098742,184.93,184.85,23.776884]
[1734931731072,41.11098742,184.93,184.86,41.11098742]
[1734931731788,41.11098742,184.93,184.87,23.776884]
[1734931731963,41.11098742,184.95,184.87,23.776884]
[1734931734197,41.11098742,184.95,184.88,41.11098742]
[1734931735299,41.11098742,184.97,184.88,41.11098742]
[1734931735989,41.11098742,184.95,184.88,41.11098742]
[1734931736192,41.11098742,184.93,184.86,41.11098742]
[1734931736802,21.663,184.98,184.86,41.11098742]
[1734931736994,41.11098742,184.95,184.86,41.11098742]
[1734931738519,41.11098742,184.93,184.86,41.11098742]
[1734931742015,41.11098742,184.91,184.84,41.11098742]
[1734931742199,25.31324057,184.89,184.81,45.31324057]
[1734931742513,25.31324057,184.91,184.83,25.31324057]
[1734931742687,25.31324057,184.95,184.87,25.31324057]
[1734931743093,25.31324057,184.97,184.89,25.31324057]
[1734931744587,25.31324057,184.97,184.9,23.776884]
[1734931744808,25.31324057,184.99,184.91,25.31324057]
[1734931745019,25.31324057,185.01,184.93,25.31324057]
[1734931747116,25.31324057,184.99,184.91,25.31324057]
[1734931747316,25.31324057,184.97,184.89,69.09012457]
[1734931748116,25.31324057,184.99,184.91,25.31324057]
[1734931748298,25.31324057,184.99,184.92,23.776884]
[1734931748914,25.31324057,185.01,184.94,23.776884]
[1734931749421,25.31324057,185.03,184.97,20.0]
[1734931749715,25.31324057,185.03,184.96,23.776884]
[1734931751419,25.31324057,185.01,184.93,25.31324057]
[1734931751717,25.31324057,185.01,184.96,20.0]
[1734931752304,25.31324057,185.01,184.93,25.31324057]
[1734931753400,25.31324057,185.03,184.95,25.31324057]
[1734931754007,25.31324057,185.03,184.96,20.0]
[1734931754308,25.31324057,184.99,184.91,25.31324057]
[1734931754496,25.31324057,184.99,184.89,45.31324057]
[1734931755612,25.31324057,184.99,184.91,25.31324057]
[1734931755801,25.31324057,185.01,184.95,20.0]
[1734931756007,25.31324057,185.01,184.93,25.31324057]
[1734931756314,25.31324057,185.01,184.94,23.776884]
[1734931756714,25.31324057,185.01,184.97,20.0]
[1734931757294,25.31324057,185.03,184.97,20.0]
[1734931757621,25.31324057,185.03,184.98,20.0]
[1734931760320,25.31324057,185.03,184.97,20.0]
[1734931773134,25.31324057,185.01,184.91,25.31324057]
[1734931773456,25.31324057,185.04,184.91,25.31324057]
[1734931773457,25.31324057,184.99,184.91,25.31324057]
[1734931774815,25.31324057,184.99,184.92,23.776884]
[1734931775639,25.31324057,185.01,184.94,23.776884]
[1734931777644,6.0831,185.06,184.98,20.0]
[1734931777645,25.31324057,185.03,184.98,20.0]
[1734931779441,25.31324057,185.03,184.96,23.776884]
[1734931780145,15.79742623,185.02,184.96,23.776884]
[1734931780343,15.79742623,185.02,184.97,20.0]
[1734931780719,15.79742623,185.02,184.98,20.0]
[1734931782834,15.79742623,185.02,184.95,23.776884]
[1734931789847,15.79742623,185.02,184.97,20.0]
[1734931790056,15.79742623,184.98,184.87,0.8109292]
[1734931790346,15.79742623,184.96,184.88,17.37942623]
[1734931790653,15.79742623,184.98,184.88,17.37942623]
[1734931791348,15.79742623,184.98,184.92,20.0]
[1734931791551,17.40972623,185.0,184.93,20.0]
[1734931794153,15.79742623,184.98,184.93,20.0]
[1734931798453,15.79742623,184.98,184.9,15.79742623]
[1734931798665,15.79742623,184.92,184.85,8.4717678]
[1734931798878,15.79742623,184.9,184.85,8.4717678]
[1734931799359,15.79742623,184.9,184.83,15.79742623]
[1734931800142,15.79742623,184.9,184.84,23.776884]
[1734931800461,15.79742623,184.92,184.85,15.79742623]
[1734931800692,15.79742623,184.94,184.88,23.776884]
[1734931800893,15.79742623,184.96,184.89,15.79742623]
[1734931801181,15.79742623,184.96,184.9,23.776884]
[1734931801343,1.5876,184.97,184.87,15.79742623]
[1734931801344,15.79742623,184.94,184.87,15.79742623]
[1734931801550,15.79742623,184.92,184.83,24.30291376]
[1734931801755,15.79742623,184.88,184.83,8.50548753]
[1734931802048,15.79742623,184.86,184.83,8.50548753]
[1734931802248,25.32125883,184.85,184.79,8.50548753]
[1734931802865,10.28986913,184.87,184.8,25.32125883]
[1734931803671,10.28986913,184.87,184.81,23.776884]
[1734931805167,3.28986913,184.87,184.81,23.776884]
[1734931806264,26.91785883,184.89,184.83,23.776884]
[1734931806451,25.32125883,184.91,184.86,20.0]
[1734931806650,1.5688,184.94,184.85,23.776884]
[1734931806651,25.32125883,184.93,184.85,23.776884]
[1734931807088,25.32125883,184.93,184.88,20.0]
[1734931807448,7.7024,185.06,184.92,20.0]
[1734931807656,25.32125883,184.97,184.91,23.776884]
[1734931809568,25.32125883,184.99,184.94,20.0]
[1734931810174,25.32125883,185.03,184.98,20.0]
[1734931810581,25.32125883,185.04,184.98,20.0]
[1734931811276,25.32125883,185.05,184.99,23.776884]
[1734931812785,25.32125883,185.06,184.99,23.776884]
[1734931813102,25.32125883,185.05,184.99,23.776884]
[1734931814175,25.32125883,185.06,184.99,23.776884]
[1734931815588,25.32125883,185.06,184.99,49.09814283]
[1734931815762,1.6402,185.15,185.03,25.32125883]
[1734931815967,25.32125883,185.11,185.04,49.09814283]
[1734931816488,25.32125883,185.13,185.08,43.776884]
[1734931816790,25.32125883,185.13,185.09,20.0]
[1734931816998,25.32125883,185.14,185.09,20.0]
[1734931819214,25.32125883,185.15,185.09,20.0]
[1734931819493,25.32125883,185.16,185.09,46.13147767]
[1734931819790,0.6873528,185.22,185.15,20.0]
[1734931819991,25.32125883,185.2,185.15,20.0]
[1734931820183,0.6873528,185.22,185.15,45.32125883]
[1734931820385,0.6873528,185.22,185.16,0.80991653]
[1734931820386,26.00861163,185.22,185.16,0.80991653]
[1734931820590,0.6873528,185.22,185.17,23.776884]
[1734931820788,26.00861163,185.22,185.16,20.0]
[1734931820993,25.32125883,185.21,185.17,20.0]
[1734931821187,26.00861163,185.22,185.17,20.0]
[1734931821369,0.6873528,185.22,185.17,20.0]
[1734931821576,0.6873528,185.22,185.13,31.59205883]
[1734931821577,25.32125883,185.2,185.13,31.59205883]
[1734931821774,25.32125883,185.15,185.08,31.59205883]
[1734931822087,25.32125883,185.15,185.11,20.0]
[1734931822287,0.6873528,185.22,185.1,25.32125883]
[1734931822596,25.32125883,185.16,185.08,31.59205883]
[1734931823602,20.6873528,185.22,185.08,31.59205883]
[1734931823899,25.32125883,185.16,185.11,20.0]
[1734931825123,25.32125883,185.14,185.09,20.0]
[1734931825479,25.32125883,185.16,185.11,20.0]
[1734931827604,0.6873528,185.22,185.11,20.0]
[1734931827803,25.32125883,185.17,185.11,20.0]
[1734931829304,25.32125883,185.17,185.13,20.0]
[1734931829803,25.32125883,185.19,185.13,20.0]
[1734931831491,25.32125883,185.19,185.12,25.32125883]
[1734931831895,25.32125883,185.21,185.15,20.0]
[1734931832090,0.6873528,185.22,185.17,20.0]
[1734931832289,0.6873528,185.22,185.15,20.0]
[1734931832593,25.32125883,185.23,185.14,25.32125883]
[1734931832594,25.32125883,185.23,185.17,20.0]
[1734931832908,25.32125883,185.21,185.17,20.0]
[1734931833087,25.32125883,185.21,185.15,20.0]
[1734931835616,25.32125883,185.21,185.12,25.32125883]
[1734931839796,25.32125883,185.19,185.11,1.5193]
[1734931840217,25.32125883,185.19,185.12,20.0]
[1734931840398,25.32125883,185.21,185.12,20.0]
[1734931840604,25.32125883,185.21,185.13,25.32125883]
[1734931841914,26.04525003,185.23,185.15,25.32125883]
[1734931843220,0.7239912,185.23,185.16,23.776884]
[1734931844117,0.7239912,185.23,185.17,25.32125883]
[1734931846315,0.7239912,185.23,185.18,23.776884]
[1734931847124,0.7239912,185.23,185.21,25.32125883]
[1734931847327,0.7239912,185.23,185.21,26.1310412]
[1734931847536,0.7239912,185.23,185.21,25.32125883]
[1734931848206,0.7239912,185.23,185.21,26.13086806]
[1734931848904,0.7239912,185.23,185.19,7.929]
[1734931849110,0.7239912,185.23,185.19,1.5355]
[1734931850111,0.7239912,185.23,185.2,20.0]
[1734931852223,0.7239912,185.23,185.21,23.776884]
[1734931852934,0.7239912,185.23,185.2,20.0]
[1734931853807,0.7239912,185.23,185.21,23.776884]
[1734931855238,0.7239912,185.23,185.2,20.0]
[1734931855841,0.7239912,185.23,185.19,1.5355]
[1734931856014,0.7239912,185.23,185.18,23.776884]
[1734931856840,26.04525003,185.23,185.15,25.32125883]
[1734931857017,26.04525003,185.23,185.14,1.5954]
[1734931857018,25.32125883,185.21,185.13,25.32125883]
[1734931857419,27.67085003,185.23,185.13,25.32125883]
[1734931857732,25.32125883,185.21,185.13,25.32125883]
[1734931858728,25.32125883,185.19,185.11,25.32125883]
[1734931859540,25.32125883,185.21,185.12,23.776884]
[1734931859927,25.32125883,185.21,185.13,25.32125883]
[1734931860455,27.67085003,185.23,185.15,25.32125883]
[1734931860825,25.32125883,185.21,185.13,49.09814283]
[1734931862140,27.67085003,185.23,185.13,49.09814283]
[1734931863054,27.67085003,185.23,185.13,81.55814283]
[1734931863255,0.7239912,185.23,185.18,25.32125883]
[1734931863457,0.7239912,185.23,185.19,23.776884]
[1734931865431,0.7239912,185.23,185.2,25.32125883]
[1734931865868,0.7239912,185.23,185.22,25.32125883]
[1734931866224,0.7239912,185.23,185.22,49.09814283]
[1734931866923,0.7239912,185.23,185.22,49.90768604]
[1734931867927,0.7239912,185.23,185.22,63.40508604]
[1734931869143,0.7239912,185.23,185.22,63.53057604]
[1734931869345,9.12e-05,185.23,185.22,88.85183487]
[1734931869542,9.12e-05,185.23,185.22,121.31183487]
[1734931869738,9.12e-05,185.23,185.22,120.50229166]
[1734931870256,1.656,185.37,185.29,20.0]
[1734931870454,1.656,185.37,185.31,25.32125883]
[1734931870748,2.80002301,185.38,185.32,23.776884]
[1734931871138,2.80002301,185.38,185.33,25.32125883]
[1734931871345,2.80002301,185.38,185.37,25.32125883]
[1734931871547,2.80002301,185.38,185.35,45.32125883]
[1734931871751,2.80002301,185.38,185.35,20.0]
[1734931872355,2.80002301,185.38,185.34,26.1303718]
[1734931872853,2.80002301,185.38,185.35,23.776884]
[1734931873052,2.80002301,185.38,185.34,25.32125883]
[1734931873550,2.80002301,185.38,185.32,49.09814283]
[1734931874538,2.80002301,185.38,185.34,25.32125883]
[1734931874747,2.80002301,185.38,185.35,23.776884]
[1734931877959,2.80002301,185.38,185.36,25.32125883]
[1734931879466,2.80002301,185.38,185.35,20.0]
[1734931879661,25.32125883,185.37,185.29,0.80917951]
[1734931879961,25.32125883,185.37,185.28,25.32125883]
[1734931879962,26.97995883,185.37,185.28,25.32125883]
[1734931880840,25.32125883,185.33,185.24,25.32125883]
[1734931881153,25.32125883,185.31,185.24,25.32125883]
[1734931881572,25.32125883,185.29,185.22,25.32125883]
[1734931882440,1.6504,185.28,185.2,25.32125883]
[1734931883065,25.32125883,185.27,185.18,25.32125883]
[1734931884464,25.32125883,185.25,185.18,25.32125883]
[1734931884763,1.6504,185.28,185.13,33.02615883]
[1734931884764,25.32125883,185.23,185.13,25.32125883]
[1734931885084,25.32125883,185.21,185.13,25.32125883]
[1734931886378,1.6504,185.28,185.1,23.776884]
[1734931886597,25.32125883,185.19,185.1,25.32125883]
[1734931887406,25.32125883,185.17,185.08,26.13132961]
[1734931887702,25.32125883,185.13,185.06,25.32125883]
[1734931887860,25.32125883,185.13,185.04,25.32125883]
[1734931888061,25.32125883,185.11,185.04,25.32125883]
[1734931888481,25.32125883,185.11,185.02,25.32125883]
[1734931888687,25.32125883,185.07,185.0,46.94075783]
[1734931888886,25.32125883,185.07,185.0,25.32125883]
[1734931889480,25.32125883,185.07,184.98,33.82674636]
[1734931889695,25.32125883,185.07,184.98,25.32125883]
[1734931890574,25.32125883,185.07,185.01,20.0]
[1734931890768,25.32125883,185.07,184.94,1.6592]
[1734931890769,1.6517,185.08,185.0,25.32125883]
[1734931891083,25.32125883,185.11,185.05,20.0]
[1734931892190,42.62890643,185.13,185.05,20.0]
[1734931892688,42.62890643,185.13,185.07,20.0]
[1734931892991,1.6068,185.13,185.09,20.0]
[1734931893992,42.62890643,185.13,185.09,20.0]
[1734931895287,41.02210643,185.11,185.04,41.02210643]
[1734931895495,41.02210643,185.11,185.07,20.0]
[1734931898217,41.02210643,185.11,185.03,23.776884]
[1734931898426,41.02210643,185.09,185.05,20.0]
[1734931898707,41.02210643,185.07,184.99,21.620641]
[1734931898885,41.02210643,185.07,185.0,41.02210643]
[1734931899088,41.02210643,185.09,185.0,41.02210643]
[1734931899271,41.02210643,185.09,185.01,0.81041737]
[1734931899473,41.02210643,185.09,185.02,41.02210643]
[1734931899976,1.6068,185.13,185.07,20.0]
[1734931899977,42.62890643,185.13,185.07,20.0]
[1734931900518,42.62890643,185.13,185.09,20.0]
[1734931901642,1.6068,185.13,185.09,20.0]
[1734931904144,41.02210643,185.15,185.1,23.776884]
[1734931904355,47.63790643,185.17,185.1,23.776884]
[1734931904844,7.9295,185.24,185.1,64.79899043]
[1734931905023,41.02210643,185.19,185.13,20.0]
[1734931905358,41.02210643,185.19,185.15,20.0]
[1734931907236,41.02210643,185.17,185.1,64.79899043]
[1734931907411,41.02210643,185.15,185.1,23.776884]
[1734931907816,41.02210643,185.15,185.11,20.0]
[1734931908133,41.02210643,185.15,185.09,23.776884]
[1734931909038,41.02210643,185.15,185.06,41.02210643]
[1734931909253,41.02210643,185.09,185.0,0.81029983]
[1734931909450,41.02210643,185.09,185.01,41.02210643]
[1734931910028,41.02210643,185.07,184.99,41.02210643]
[1734931911334,41.02210643,185.03,184.95,26.92068083]
[1734931911530,41.02210643,185.01,184.92,41.02210643]
[1734931911864,41.02210643,184.99,184.92,41.02210643]
[1734931912046,42.59990643,185.04,184.92,41.02210643]
[1734931912230,41.02210643,184.99,184.92,41.02210643]
[1734931913935,41.02210643,185.01,184.93,23.776884]
[1734931914560,41.02210643,185.03,185.0,20.0]
[1734931914859,47.39210643,185.05,185.0,20.0]
[1734931915545,41.02210643,185.05,185.0,20.0]
[1734931915747,41.02210643,185.05,185.01,20.0]
[1734931915949,41.02210643,185.07,185.01,20.0]
[1734931917259,41.02210643,185.07,185.02,23.776884]
[1734931918044,41.02210643,185.07,185.01,20.0]
[1734931922244,41.02210643,185.05,184.98,41.02210643]
[1734931922476,41.02210643,185.03,184.99,20.0]
[1734931923871,41.02210643,185.05,184.99,20.0]
[1734931925285,41.02210643,185.05,184.98,61.02210643]
[1734931925754,4.05674999,185.21,185.05,23.776884]
[1734931925755,1.661,185.15,185.05,23.776884]
[1734931925952,41.02210643,185.11,185.08,20.0]
[1734931926150,25.24770673,185.11,185.08,20.0]
[1734931926348,25.24770673,185.09,185.08,20.0]
[1734931926545,25.24770673,185.11,185.06,20.0]
[1734931927278,25.24770673,185.13,185.09,20.0]
[1734931927477,25.24770673,185.15,185.12,20.0]
[1734931927777,25.24770673,185.15,185.1,23.776884]
[1734931927945,1.5985,185.19,185.09,20.0]
[1734931927946,25.24770673,185.13,185.09,20.0]
[1734931928151,41.0184909,185.13,185.09,20.0]
[1734931928780,41.0184909,185.13,185.08,20.0]
[1734931929080,41.0184909,185.13,185.09,20.0]
[1734931929448,41.0184909,185.15,185.09,20.0]
[1734931930273,41.0184909,185.15,185.1,20.0]
[1734931933576,41.0184909,185.15,185.09,20.0]
[1734931934281,41.0184909,185.15,185.1,43.776884]
[1734931936290,41.0184909,185.19,185.12,23.776884]
[1734931936454,41.0184909,185.19,185.13,0.8099608]
[1734931936653,41.0184909,185.19,185.14,23.776884]
[1734931937270,41.0184909,185.19,185.11,41.8284393]
[1734931937271,41.0184909,185.17,185.12,20.0]
[1734931937687,41.0184909,185.15,185.12,20.0]
[1734931938387,41.0184909,185.17,185.1,20.0]
[1734931938982,41.0184909,185.17,185.09,41.0184909]
[1734931939166,41.0184909,185.17,185.12,20.0]
[1734931939478,41.0184909,185.19,185.13,23.776884]
[1734931944470,6.0408,185.21,185.09,0.8100374]
[1734931944471,41.0184909,185.17,185.09,0.8100374]
[1734931944669,41.0184909,185.13,185.05,6.0521]
[1734931944872,41.0184909,185.11,185.03,42.5823909]
[1734931945082,41.0184909,185.09,185.03,1.5639]
[1734931945258,41.0184909,185.06,185.01,8.50548753]
[1734931945571,47.4911909,185.13,185.01,8.50548753]
[1734931945572,41.0184909,185.02,185.01,8.50548753]
[1734931946262,41.0184909,185.02,184.91,8.50548753]
[1734931946263,47.6750909,185.02,184.91,8.50548753]
[1734931946575,41.0184909,184.96,184.91,8.50548753]
[1734931947503,41.0184909,184.96,184.89,41.0184909]
[1734931948201,41.0184909,184.96,184.92,20.0]
[1734931948498,41.0184909,184.96,184.93,20.0]
[1734931948693,41.0184909,184.98,184.94,23.776884]
[1734931949198,41.0184909,185.0,184.94,23.776884]
[1734931949503,41.0184909,185.0,184.97,20.0]
[1734931951499,1.5229,185.1,185.01,20.0]
[1734931951687,41.0184909,185.09,185.03,20.0]
[1734931952275,41.0184909,185.09,185.04,23.776884]
[1734931952681,6.1367,185.11,185.04,23.776884]
[1734931952682,41.0184909,185.11,185.04,23.776884]
[1734931957809,41.0184909,185.09,185.04,23.776884]
[1734931958005,41.0184909,185.09,185.03,20.0]
[1734931959820,41.0184909,185.07,185.03,20.0]
[1734931960011,41.0184909,185.07,185.01,20.0]
[1734931960810,41.0184909,185.07,184.99,0.81036701]
[1734931961015,41.0184909,185.03,184.94,41.0184909]
[1734931961320,41.0184909,185.05,184.98,41.0184909]
[1734931961613,41.0184909,185.05,184.99,0.81053109]
[1734931961821,41.0184909,185.06,184.99,0.81053109]
[1734931962120,41.0184909,185.06,185.01,20.0]
[1734931962310,41.0184909,185.06,185.02,23.776884]
[1734931962612,41.0184909,185.06,185.01,20.0]
[1734931962814,41.0184909,185.08,185.05,20.0]
[1734931963023,41.0184909,185.1,185.05,20.0]
[1734931963197,41.0184909,185.1,185.07,20.0]
[1734931963393,41.0184909,185.12,185.08,23.776884]
[1734931963617,41.0184909,185.14,185.11,20.0]
[1734931964715,41.0184909,185.16,185.11,20.0]
[1734931966697,41.0184909,185.14,185.11,20.0]
[1734931968117,41.0184909,185.12,185.08,23.776884]
[1734931971323,41.0184909,185.14,185.07,23.776884]
[1734931971724,41.0184909,185.14,185.1,20.0]
[1734931972235,41.0184909,185.14,185.11,23.776884]
[1734931972526,41.0184909,185.16,185.11,23.776884]
[1734931973333,41.0184909,185.18,185.14,20.0]
[1734931975716,41.0184909,185.16,185.11,20.0]
[1734931976014,41.0184909,185.16,185.12,20.0]
[1734931977152,41.0184909,185.16,185.09,23.776884]
[1734931977848,41.0184909,185.14,185.06,41.0184909]
[1734931978022,41.0184909,185.14,185.09,20.0]
[1734931980865,41.0184909,185.15,185.1,23.776884]
[1734931981026,41.0184909,185.19,185.14,20.0]
[1734931981227,41.0184909,185.2,185.14,20.0]
[1734931981530,41.0184909,185.2,185.14,20.80995433]
[1734931981745,41.0184909,185.2,185.15,23.776884]
[1734931981926,41.0184909,185.21,185.15,23.776884]
[1734931982959,6.5664,185.23,185.14,20.0]
[1734931982960,41.0184909,185.18,185.14,20.0]
[1734931983663,41.0184909,185.17,185.13,20.0]
[1734931983951,41.0184909,185.18,185.13,20.0]
[1734931984348,41.0184909,185.18,185.14,23.776884]
[1734931984550,41.0184909,185.2,185.14,23.776884]
[1734931984749,41.0184909,185.2,185.17,20.0]
[1734931986753,1.5569,185.25,185.17,20.0]
[1734931986754,41.0184909,185.22,185.17,20.0]
[1734931987245,41.0184909,185.22,185.18,23.776884]
[1734931987780,41.0184909,185.19,185.11,41.0184909]
[1734931987979,41.0184909,185.16,185.08,41.0184909]
[1734931988148,41.0184909,185.16,185.09,0.81014613]
[1734931988350,1.5569,185.25,185.1,41.0184909]
[1734931988576,41.0184909,185.18,185.11,41.82853463]
[1734931988746,41.0184909,185.2,185.12,41.0184909]
[1734931988952,41.0184909,185.2,185.13,0.80996267]
[1734931989153,41.0184909,185.2,185.15,20.0]
[1734931990461,41.0184909,185.18,185.11,0.8099612]
[1734931990675,41.0184909,185.15,185.08,0.81009656]
[1734931990876,41.0184909,185.12,185.07,1.5251]
[1734931991566,41.0184909,185.13,185.07,1.5251]
[1734931992265,41.0184909,185.13,185.08,23.776884]
[1734931992964,41.0184909,185.12,185.08,23.776884]
[1734931993680,41.0184909,185.12,185.05,41.0184909]
[1734931993862,41.0184909,185.1,185.03,1.6386]
[1734931995191,41.0184909,185.1,185.05,20.0]
[1734931998777,41.0184909,185.1,185.02,41.0184909]
[1734931998981,1.6093,185.16,184.98,1.5753]
[1734931998982,41.0184909,185.05,184.98,1.5753]
[1734931999367,6.6499,185.11,184.95,41.0184909]
[1734931999368,41.0184909,185.03,184.95,41.0184909]
[1734931999566,41.0184909,185.01,184.94,1.5753]
[1734931999766,41.0184909,184.99,184.93,8.50548753]
[1734931999997,41.0184909,184.99,184.91,41.0184909]
[1734932000204,25.28314322,184.99,184.91,25.28314322]
[1734932001602,1.6517,185.07,184.97,25.28314322]
[1734932001811,1.6517,185.07,185.0,45.28314322]
[1734932002010,25.28314322,185.08,185.01,0.81051973]
[1734932002176,41.03873462,185.09,185.02,23.776884]
[1734932003211,41.03873462,185.07,185.01,23.776884]
[1734932003781,41.03873462,185.07,185.04,20.0]
[1734932004188,47.68863462,185.11,185.04,20.0]
[1734932004385,41.03873462,185.09,185.04,20.0]
[1734932004970,41.03873462,185.07,185.01,23.776884]
[1734932005191,41.03873462,185.07,185.0,23.776884]
[1734932005375,8.1416,185.16,185.03,20.0]
[1734932005589,41.03873462,185.1,185.04,43.776884]
[1734932005804,41.03873462,185.14,185.08,20.0]
[1734932006112,41.03873462,185.16,185.1,20.0]
[1734932006269,41.03873462,185.16,185.11,23.776884]
[1734932006468,41.03873462,185.18,185.11,23.776884]
[1734932007412,41.03873462,185.18,185.11,24.587004]
[1734932007580,12.80112401,185.27,185.15,23.776884]
[1734932007581,41.03873462,185.22,185.15,23.776884]
[1734932007781,41.03873462,185.28,185.19,64.81561862]
[1734932007982,41.03873462,185.28,185.19,65.6252983]
[1734932008179,41.03873462,185.28,185.22,20.0]
[1734932009194,6.0399,185.31,185.23,23.776884]
[1734932009388,41.03873462,185.3,185.24,0.80954144]
[1734932011513,41.03873462,185.32,185.26,20.0]
[1734932011727,41.03873462,185.32,185.28,20.0]
[1734932012021,41.03873462,185.34,185.28,20.0]
[1734932012205,41.03873462,185.34,185.3,20.0]
[1734932012594,41.03873462,185.36,185.3,20.0]
[1734932013679,41.03873462,185.34,185.29,20.0]
[1734932014721,41.03873462,185.34,185.3,20.0]
[1734932019031,41.03873462,185.32,185.26,6.3749]
[1734932019214,41.03873462,185.27,185.13,6.0603]
[1734932019422,41.03873462,185.18,185.14,30.0]
[1734932019624,41.03873462,185.18,185.1,8.50548753]
[1734932019927,41.03873462,185.16,185.1,8.50548753]
[1734932020122,41.03873462,185.16,185.09,47.90886362]
[1734932020643,41.03873462,185.16,185.12,20.0]
[1734932021617,29.74654162,185.16,185.12,20.0]
[1734932021834,41.03873462,185.14,185.07,41.03873462]
[1734932022048,41.03873462,185.12,185.05,41.03873462]
[1734932022214,41.03873462,185.12,185.04,0.8101779]
[1734932023047,41.03873462,185.12,185.05,61.03873462]
[1734932023246,41.03873462,185.12,185.06,23.776884]
[1734932023726,41.03873462,185.1,185.03,41.84906064]
[1734932025148,41.03873462,185.1,185.06,20.0]
[1734932028856,41.03873462,185.1,185.05,20.0]
[1734932029021,6.1489,185.2,185.05,20.0]
[1734932029022,41.03873462,185.09,185.05,20.0]
[1734932029222,41.03873462,185.1,185.05,20.0]
[1734932036442,41.03873462,185.08,185.02,7.3204465]
[1734932036625,41.03873462,185.07,185.04,20.0]
[1734932037027,41.03873462,185.09,185.04,20.0]
[1734932038561,41.03873462,185.08,185.04,20.0]
[1734932038761,41.03873462,185.06,185.02,20.0]
[1734932038962,41.03873462,185.05,185.01,20.0]
[1734932039437,41.03873462,185.04,185.01,20.0]
[1734932039635,6.6514,185.09,185.01,20.0]
[1734932039636,41.03873462,185.06,185.01,20.0]
[1734932039847,41.03873462,185.07,185.02,20.0]
[1734932040239,25.26039173,185.07,185.02,20.0]
[1734932040655,25.26039173,185.07,185.03,23.776884]
[1734932040855,25.26039173,185.09,185.03,23.776884]
[1734932041855,25.26039173,185.08,185.03,23.776884]
[1734932042033,25.26039173,185.06,185.01,20.0]
[1734932042658,25.26039173,185.02,184.95,0.81056828]
[1734932042846,25.26039173,185.01,184.95,0.81056828]
[1734932043047,25.26039173,185.0,184.92,26.07109526]
[1734932043352,25.26039173,184.99,184.92,0.81070353]
[1734932043667,25.26039173,184.97,184.91,7.8022]
[1734932043846,25.26039173,184.96,184.89,25.26039173]
[1734932044049,25.26039173,184.97,184.89,25.26039173]
[1734932044252,41.09095822,184.98,184.91,41.09095822]
[1734932044440,41.09095822,185.0,184.92,41.09095822]
[1734932044763,41.09095822,184.98,184.91,41.09095822]
[1734932045133,41.09095822,184.98,184.92,23.776884]
[1734932045347,41.09095822,184.98,184.91,23.776884]
[1734932045563,41.09095822,184.98,184.94,20.0]
[1734932045748,41.09095822,184.99,184.94,20.0]
[1734932046161,41.09095822,185.01,184.95,23.776884]
[1734932046336,41.09095822,185.02,184.97,23.776884]
[1734932048263,41.09095822,185.0,184.94,61.09095822]
[1734932048452,41.09095822,185.0,184.93,23.776884]
[1734932048651,41.09095822,185.0,184.96,20.0]
[1734932048972,41.09095822,184.98,184.93,23.776884]
[1734932049773,41.09095822,185.02,184.97,23.776884]
[1734932051153,41.09095822,185.0,184.97,23.776884]
[1734932051339,41.09095822,185.02,184.97,23.776884]
[1734932052546,41.09095822,185.04,184.97,23.776884]